Workbook

Sheet CALCULO
C2: CALCULO DE IMPUESTOS | I2: N°
C3: PRODUCTO | F3: SPN | I3: T/C: | J3: 3.62
C4: BASE IMPONIBLE | H4: USD$ | J4: SOLES
C5: FOB | H5: 12000 | J5: =H5*J3 -> 43440
C6: FLETE | I6: %Seg | J6: =H6*J3 -> 0
C7: SEGURO (% o Valor) | D7: 0 | H7: =IF(D7>0,D7,(H5*I7)/100) -> 0 | J7: =H7*J3 -> 0
C8: VALOR CIF | G8: $ | H8: =H5+H6+H7 -> 12000 | I8: S/ | J8: =J5+J6+J7 -> 43440
C9: CALCULO IMPUESTOS | H9: USD$ | J9: SOLES
C10: Ad/Valorem | F10: 6 | G10: % | H10: =H8*F10/100 -> 720 | J10: =H10*J3 -> 2606.4
C11: I.P.M. | F11: 2 | G11: % | H11: =(H8+H10)*2/100 -> 254.4 | J11: =H11*J3 -> 920.928
C12: I.G.V. | F12: 16 | G12: % | H12: =(H8+H10)*16/100 -> 2035.2 | J12: =H12*J3 -> 7367.424
C13: ISC.(U=Unid,$=USD$).Base | D13: 0 | E13: U | F13: 1 | G13: % | H13: =IF(E13="U",D13*F13,(D13*F13)/100) -> 0 | J13: =H13*J3 -> 0
C14: DERECHO ESPECIFICO | D14: 0 | E14: KG | F14: 0 | G14: TN | H14: =D14*F14 -> 0 | J14: =H14*J3 -> 0
C15: SUB TOTAL | H15: =H10+H11+H12+H13+H14 -> 3009.6 | J15: =H15*J3 -> 10894.752
C16: PERCEPCION | G16: % | H16: =(H8+H15)*F16/100 -> 0 | J16: =H16*J3 -> 0
C17: TOTAL IMPUESTOS | G17: $ | H17: =H15+H16 -> 3009.6 | I17: S/ | J17: =H17*J3 -> 10894.752
C18: Fecha | D18: 2021-02-14
C23: NOTA: Solo de color amarillo se ingresa datos

Sheet BASE
B3: NRO. | C3: PRODUCTO | D3: PARTIDA | E3: FOB | F3: FLETE | G3: SEGURO | H3: CIF | I3: AD/VAL | J3: IPM | K3: IGV | L3: ISC | M3: DER.ESP. | N3: SUB TOTAL | O3: PERCEPCION | P3: TOT.IMP.
